bitfinex-derivatives/quotes_SOLF0:USTF0_20241017
["timestamp","ask_amount","ask_price","bid_price","bid_amount"]
[1729127034964,8.92,155.38,155.33,12.09406143]
[1729127035168,3.2189,155.34,155.33,3.17406143]
[1729127035368,3.2189,155.34,155.32,8.92]
[1729127035564,3.2193,155.32,155.26,1.4475]
[1729127035769,8.92,155.34,155.29,8.92]
[1729127036169,3.2197,155.3,155.29,8.92]
[1729127036667,8.92,155.3,155.26,10.3675]
[1729127036869,4.56,155.33,155.25,8.92]
[1729127037081,8.92,155.29,155.25,8.92]
[1729127037264,3.2205,155.26,155.25,8.92]
[1729127037464,8.92,155.28,155.23,8.92]
[1729127038176,8.92,155.28,155.23,12.09036531]
[1729127039475,3.2209,155.24,155.23,12.09036531]
[1729127041276,4.56,155.29,155.24,3.2209]
[1729127041473,4.56,155.29,155.26,8.92]
[1729127042075,3.2201,155.28,155.26,8.92]
[1729127042279,4.56,155.29,155.26,8.92]
[1729127043580,3.2201,155.28,155.26,8.92]
[1729127052892,7.7798,155.3,155.26,8.92]
[1729127053091,3.2198,155.3,155.26,8.92]
[1729127053387,13.48,155.32,155.26,12.1404]
[1729127053590,3.22,155.29,155.26,8.92]
[1729127053778,8.92,155.31,155.25,8.92]
[1729127053978,8.92,155.31,155.25,12.1406]
[1729127054576,8.92,155.31,155.26,3.2205]
[1729127054982,3.22,155.29,155.27,8.92]
[1729127056783,4.56,155.32,155.28,8.92]
[1729127057582,3.2197,155.3,155.28,8.92]
[1729127061586,3.2197,155.3,155.28,12.1401]
[1729127061782,3.2195,155.31,155.29,8.92]
[1729127063678,3.2199,155.29,155.28,8.92]
[1729127063886,8.92,155.32,155.27,8.92]
[1729127064390,3.22,155.29,155.27,8.92]
[1729127065188,3.22,155.29,155.27,12.1403]
[1729127065389,3.22,155.29,155.28,8.92]
[1729127066591,3.2198,155.3,155.28,8.92]
[1729127067990,8.92,155.32,155.28,8.92]
[1729127068295,3.2199,155.29,155.28,8.92]
[1729127069590,8.92,155.32,155.28,8.92]
[1729127069894,3.2198,155.3,155.28,8.92]
[1729127071883,3.2198,155.3,155.28,12.1401]
[1729127072088,3.2198,155.3,155.28,8.92]
[1729127076203,1.3636,155.39,155.28,8.92]
[1729127076204,6.4335,155.45,155.29,8.92]
[1729127076403,8.92,155.39,155.34,8.92]
[1729127076702,4.56,155.39,155.36,8.92]
[1729127077007,4.56,155.39,155.37,3.20828112]
[1729127078499,3.218,155.38,155.37,3.20828112]
[1729127081706,3.218,155.38,155.36,8.92]
[1729127082203,3.218,155.38,155.36,12.15677272]
[1729127083804,2.7899,155.43,155.37,8.92]
[1729127084004,233.6464,155.51,155.37,8.92]
[1729127084005,2.72,155.52,155.4,28.0]
[1729127084208,2.7495,155.62,155.47,8.92]
[1729127084209,2.7216,155.54,155.47,8.92]
[1729127084409,3.2156,155.5,155.47,8.92]
[1729127085203,7.2816,155.54,155.47,8.92]
[1729127085405,3.2154,155.51,155.47,8.92]
[1729127085708,8.92,155.5,155.45,13.48]
[1729127085903,8.92,155.5,155.45,8.92]
[1729127086302,8.92,155.5,155.46,8.92]
[1729127086508,8.92,155.51,155.46,8.92]
[1729127087210,3.2159,155.49,155.46,8.92]
[1729127087613,8.92,155.51,155.46,8.92]
[1729127089121,8.92,155.49,155.44,8.92]
[1729127089510,3.2163,155.47,155.44,8.92]
[1729127090911,8.92,155.49,155.44,8.92]
[1729127090912,3.216,155.48,155.44,12.1366]
[1729127091114,3.216,155.48,155.45,8.92]
[1729127092321,3.216,155.48,155.47,8.92]
[1729127096922,3.2161,155.48,155.45,8.92]
[1729127100526,13.48,155.5,155.41,1.3842]
[1729127100727,8.92,155.48,155.43,8.92]
[1729127101225,3.2166,155.45,155.43,8.92]
[1729127102519,8.92,155.44,155.4,3.16917229]
[1729127102719,8.92,155.44,155.38,8.92]
[1729127102925,3.2175,155.41,155.39,8.92]
[1729127103824,3.2176,155.4,155.38,12.21419711]
[1729127106926,3.2178,155.39,155.38,3.29419711]
[1729127107228,13.58,155.41,155.36,8.92]
[1729127107627,3.2182,155.38,155.36,12.06401731]
[1729127108425,3.2182,155.37,155.36,3.14401731]
[1729127108628,8.92,155.4,155.36,8.92]
[1729127108826,8.92,155.4,155.37,3.29696852]
[1729127109931,13.58,155.41,155.37,3.29696852]
[1729127110431,13.58,155.41,155.36,8.92]
[1729127110828,13.58,155.41,155.36,12.08405998]
[1729127111027,3.2182,155.38,155.36,12.08405998]
[1729127112934,13.58,155.41,155.36,12.08405998]
[1729127113133,3.2182,155.37,155.36,12.08405998]
[1729127115128,3.2182,155.37,155.36,3.16405998]
[1729127115333,8.92,155.4,155.34,8.92]
[1729127115537,3.2185,155.36,155.34,12.18531925]
[1729127119241,3.2185,155.36,155.34,3.26531925]
[1729127119544,3.2185,155.36,155.33,12.1389]
[1729127119842,3.2185,155.36,155.33,15.32203128]
[1729127120142,3.2185,155.36,155.34,8.92]
[1729127120344,3.2182,155.38,155.35,3.2186]
[1729127120741,3.2182,155.38,155.36,8.92]
[1729127122440,8.92,155.41,155.36,8.92]
[1729127122643,4.66,155.43,155.4,8.92]
[1729127123140,3.2174,155.41,155.4,8.92]
[1729127125142,4.66,155.43,155.4,8.92]
[1729127125337,7.8771,155.43,155.41,8.92]
[1729127125548,4.62,155.45,155.42,3.29623022]
[1729127125750,1.4356,155.48,155.42,8.92]
[1729127125944,4.62,155.47,155.44,8.92]
[1729127126242,4.62,155.47,155.41,8.92]
[1729127126243,13.54,155.47,155.41,8.92]
[1729127126442,3.2171,155.43,155.42,3.16718714]
[1729127127843,1.4356,155.48,155.41,8.92]
[1729127128048,3.2169,155.44,155.4,3.2174]
[1729127128247,3.2169,155.44,155.39,4.62]
[1729127128248,3.2169,155.44,155.41,8.92]
[1729127128451,3.2169,155.44,155.41,12.11670339]
[1729127129447,3.2169,155.44,155.41,15.33410339]
[1729127129652,13.54,155.47,155.41,12.11670339]
[1729127129853,3.2172,155.42,155.41,3.19670339]
[1729127130052,3.2172,155.42,155.4,8.92]
[1729127130750,3.2172,155.42,155.41,3.18158059]
[1729127138959,4.62,155.47,155.41,8.92]
[1729127139258,4.62,155.47,155.43,8.92]
[1729127139461,3.2167,155.45,155.43,8.92]
[1729127139960,3.2167,155.45,155.43,12.13042397]
[1729127141159,3.2168,155.44,155.43,12.13042397]
[1729127145667,3.2167,155.45,155.43,12.13042397]
[1729127146270,3.2167,155.45,155.43,15.34742397]
[1729127147173,7.8365,155.46,155.43,15.34742397]
[1729127147673,7.8365,155.46,155.44,3.2168]
[1729127150371,3.2168,155.44,155.43,3.21042397]
[1729127150572,3.2168,155.44,155.42,12.137]
[1729127151273,3.2168,155.44,155.42,15.29553226]
[1729127151572,3.217,155.43,155.42,3.15853226]
[1729127151765,3.217,155.43,155.41,8.92]
[1729127152373,3.217,155.43,155.42,3.22706311]
[1729127152573,4.62,155.46,155.42,3.22706311]
[1729127152776,3.2168,155.45,155.43,8.92]
[1729127153671,8.92,155.52,155.44,8.92]
[1729127153872,4.62,155.51,155.47,8.92]
[1729127154174,4.62,155.5,155.47,8.92]
[1729127154472,3.2158,155.49,155.47,8.92]
[1729127154776,4.62,155.51,155.47,8.92]
[1729127155069,3.216,155.48,155.47,8.92]
[1729127157268,3.216,155.48,155.46,8.92]
[1729127158677,3.2158,155.49,155.46,12.1363]
[1729127159474,3.2158,155.49,155.47,8.92]
[1729127160681,3.2154,155.51,155.48,12.1358]
[1729127160983,8.92,155.51,155.46,8.92]
[1729127161180,3.2161,155.48,155.46,8.92]
[1729127161481,8.92,155.5,155.44,8.92]
[1729127161780,3.2165,155.46,155.44,8.92]
[1729127162079,8.92,155.48,155.44,8.92]
[1729127162280,4.58,155.49,155.46,8.92]
[1729127162474,3.216,155.48,155.46,12.1363]
[1729127162669,13.5,155.49,155.43,1.332]
[1729127162874,3.2163,155.47,155.44,12.1367]
[1729127164170,3.2166,155.45,155.42,13.5798]
[1729127164372,3.2166,155.45,155.42,10.3627]
[1729127165476,3.2166,155.45,155.43,3.217]
[1729127167979,8.92,155.44,155.41,3.27843089]
[1729127168171,8.92,155.44,155.4,12.1374]
[1729127168575,3.2171,155.43,155.4,12.1374]
[1729127177689,4.3116,155.48,155.37,1.4128]
[1729127177887,4.58,155.47,155.43,12.137]
[1729127178090,4.58,155.47,155.44,3.27263918]
[1729127178788,11.7787,155.48,155.44,3.27263918]
[1729127178979,4.58,155.47,155.44,3.27263918]
[1729127179184,3.2167,155.45,155.44,3.27263918]
[1729127192706,3.2164,155.46,155.43,12.1368]
[1729127192911,3.2164,155.46,155.43,8.92]
[1729127193203,3.2164,155.46,155.43,12.17988071]
[1729127193604,3.2164,155.46,155.43,15.39678071]
[1729127197512,13.48,155.48,155.43,12.17988071]
[1729127197712,3.2167,155.45,155.43,15.39688071]
[1729127198308,3.2168,155.44,155.43,12.17988071]
[1729127198516,3.2168,155.44,155.43,3.25988071]
[1729127198701,3.2168,155.44,155.41,8.92]
[1729127199308,3.2168,155.44,155.41,15.27889959]
[1729127199814,3.2171,155.43,155.41,12.06159959]
[1729127200207,13.48,155.46,155.41,12.06159959]
[1729127200915,3.2171,155.43,155.41,12.06159959]
[1729127202307,3.2171,155.43,155.41,15.27899959]
[1729127203807,3.2171,155.43,155.41,3.14159959]
[1729127204018,3.2171,155.43,155.4,12.1375]
[1729127205015,3.2171,155.43,155.41,3.17140191]
[1729127205318,3.2172,155.42,155.41,3.17140191]
[1729127206930,3.2171,155.43,155.41,3.17140191]
[1729127207714,13.48,155.46,155.41,3.17140191]
[1729127208727,13.48,155.46,155.41,12.09140191]
[1729127209522,3.2171,155.43,155.41,12.09140191]
[1729127210221,3.2168,155.44,155.41,15.30870191]
[1729127210627,25.41337836,155.52,155.42,8.92]
[1729127210828,8.92,155.48,155.43,8.92]
[1729127211025,13.48,155.47,155.44,3.27606759]
[1729127211534,3.2166,155.46,155.44,3.27606759]
[1729127211828,13.48,155.47,155.44,3.27606759]
[1729127212225,3.2164,155.46,155.44,3.27606759]
[1729127212924,3.2171,155.43,155.4,3.2175]
[1729127213124,8.92,155.45,155.41,3.18866224]
[1729127213321,8.92,155.45,155.37,1.4128]
[1729127213525,3.2175,155.41,155.38,8.92]
[1729127214031,7.7773,155.42,155.39,3.2177]
[1729127214530,7.7773,155.42,155.39,12.1377]
[1729127217523,4.56,155.42,155.41,3.2174]
[1729127217722,4.56,155.45,155.41,12.12214956]
[1729127218630,3.2169,155.44,155.41,15.33944956]
[1729127221345,12.1369,155.44,155.41,6.41944956]
[1729127221940,3.217,155.43,155.41,6.41944956]
[1729127223539,3.217,155.43,155.41,15.33944956]
[1729127223839,3.217,155.43,155.41,6.41944956]
[1729127224240,3.2172,155.42,155.41,3.20214956]
[1729127224738,3.2172,155.42,155.38,8.92]
[1729127225641,3.2172,155.42,155.4,8.92]
[1729127226442,3.2172,155.42,155.41,3.25161212]
[1729127227938,8.92,155.44,155.4,8.92]
[1729127228139,3.217,155.43,155.41,3.2173]
[1729127228338,3.217,155.43,155.42,3.26211467]
[1729127230744,4.56,155.45,155.41,8.92]
[1729127230941,3.2168,155.44,155.42,3.2172]
[1729127231138,3.2168,155.44,155.43,3.20162172]
[1729127231343,3.2168,155.44,155.41,12.1373]
[1729127231841,3.2168,155.44,155.41,15.29741326]
[1729127234437,3.2168,155.44,155.42,3.2172]
[1729127234842,3.2168,155.44,155.41,12.08011326]
[1729127234843,1.3535,155.5,155.41,12.08011326]
[1729127235146,13.48,155.5,155.45,8.92]
[1729127235643,8.92,155.46,155.41,3.16011326]
[1729127235838,8.92,155.46,155.42,8.92]
[1729127236039,8.92,155.46,155.42,12.13138931]
[1729127236337,3.2166,155.45,155.42,15.34838931]
[1729127236537,8.92,155.46,155.42,12.13138931]
[1729127237548,12.1365,155.46,155.43,3.217]
[1729127239946,16.6965,155.46,155.43,3.217]
[1729127240348,3.2169,155.44,155.42,3.21138931]
[1729127240548,12.1369,155.44,155.41,3.2173]
[1729127241047,3.2169,155.44,155.41,15.36254689]
[1729127241251,3.2169,155.44,155.41,12.1373]
[1729127241849,3.2169,155.44,155.41,15.31589743]
[1729127245356,3.2172,155.42,155.39,3.2178]
[1729127245552,13.48,155.42,155.37,1.4128]
[1729127246262,8.92,155.4,155.35,8.92]
[1729127246653,3.2182,155.38,155.35,12.1385]
[1729127248361,8.92,155.39,155.33,92.68412518]
[1729127248558,13.48,155.38,155.33,91.26432518]
[1729127248752,13.48,155.38,155.33,3.18313128]
[1729127248753,3.2189,155.34,155.33,3.18313128]
[1729127248971,8.92,155.34,155.28,1.3467]
[1729127249158,8.92,155.34,155.24,3.20973255]
[1729127249159,8.92,155.3,155.25,2.8783]
[1729127249462,8.92,155.3,155.24,8.92]
[1729127249463,8.92,155.29,155.24,8.92]
[1729127249661,8.92,155.27,155.22,1.3467]
[1729127249860,13.48,155.26,155.22,3.15355254]
[1729127250162,4.56,155.27,155.24,8.92]
[1729127250366,3.2203,155.27,155.24,8.92]
[1729127251765,4.1137,155.37,155.25,8.92]
[1729127252066,8.92,155.32,155.27,8.92]
[1729127252264,8.92,155.3,155.25,8.92]
[1729127252459,13.48,155.3,155.25,8.92]
[1729127252860,8.92,155.29,155.26,3.27406262]
[1729127253063,8.92,155.27,155.21,10.3525]
[1729127253358,8.92,155.28,155.23,8.92]
[1729127253865,3.2207,155.26,155.23,8.92]
[1729127254263,12.1407,155.26,155.22,3.2213]
[1729127254468,3.2207,155.25,155.22,3.2213]
[1729127254667,8.92,155.23,155.14,1.4343]
[1729127254871,8.92,155.22,155.18,8.92]
[1729127255267,8.92,155.22,155.18,12.142]
[1729127256362,12.1415,155.22,155.18,12.142]
[1729127260565,12.1416,155.21,155.17,3.2223]
[1729127261364,8.92,155.21,155.16,8.92]
[1729127261668,8.92,155.21,155.18,3.2222]
[1729127262770,12.1414,155.22,155.18,12.1422]
[1729127262967,8.92,155.22,155.18,8.92]
[1729127263170,4.56,155.23,155.2,3.2217]
[1729127263371,4.56,155.23,155.21,3.17642431]
[1729127263670,4.56,155.23,155.19,8.92]
[1729127264072,7.7812,155.23,155.19,15.37439023]
[1729127264577,4.56,155.25,155.2,8.92]
[1729127264765,4.56,155.25,155.21,3.2214]
[1729127264766,7.7809,155.25,155.21,3.2214]
[1729127265067,7.7809,155.25,155.21,6.39363548]
[1729127270470,4.56,155.25,155.21,6.39363548]
[1729127270670,4.56,155.25,155.21,3.17223548]
[1729127270671,3.2212,155.23,155.21,3.17223548]
[1729127270870,3.2212,155.23,155.2,12.1417]
[1729127271166,12.1412,155.23,155.2,3.2217]
[1729127271369,8.92,155.22,155.2,3.29768798]
[1729127271572,8.92,155.22,155.18,8.92]
[1729127272475,12.1414,155.22,155.19,3.222]
[1729127272771,12.1414,155.22,155.19,6.46588105]
[1729127279577,3.2214,155.22,155.19,15.38588105]
[1729127280374,3.2214,155.22,155.19,12.16388105]
[1729127280579,3.2214,155.22,155.2,3.2218]
[1729127281985,8.92,155.24,155.2,3.2218]
[1729127282183,3.2211,155.23,155.2,12.1418]
[1729127283575,3.2211,155.23,155.2,3.2218]
[1729127287479,3.2215,155.22,155.19,6.46578105]
[1729127289080,3.2215,155.22,155.2,3.2217]
[1729127289287,3.2215,155.22,155.2,12.1417]
[1729127289881,3.2215,155.22,155.2,15.40716826]
[1729127290187,3.2215,155.22,155.2,6.48716826]
[1729127292886,3.2215,155.22,155.2,3.26546826]
[1729127293187,3.2215,155.22,155.16,8.92]
[1729127293188,3.2216,155.21,155.16,8.92]
[1729127293579,3.2218,155.2,155.17,3.2222]
[1729127293979,3.2218,155.2,155.17,12.1422]
[1729127294183,3.2215,155.22,155.19,12.1419]
[1729127294392,3.2215,155.22,155.19,15.43045615]
[1729127294588,8.92,155.23,155.19,15.43045615]
[1729127295387,3.2216,155.21,155.19,15.43045615]
[1729127296089,3.2216,155.21,155.19,3.28855615]
[1729127296287,3.2216,155.21,155.18,3.2221]
[1729127296888,3.2216,155.21,155.17,8.92]
[1729127297088,3.2215,155.22,155.19,8.92]
[1729127297287,3.2215,155.22,155.19,12.17063114]
[1729127297687,3.2215,155.22,155.19,15.39243114]
[1729127299994,3.2215,155.22,155.19,3.25063114]
[1729127299995,8.92,155.22,155.19,3.25063114]
[1729127300188,3.2217,155.21,155.18,3.222]
[1729127300589,3.2217,155.21,155.17,8.92]
[1729127300891,3.2217,155.21,155.19,3.2219]
[1729127301084,3.2217,155.21,155.19,6.41323853]
[1729127301987,1.4198,155.28,155.2,8.92]
[1729127302193,3.1602,155.27,155.21,8.92]
[1729127302492,3.2207,155.26,155.22,3.2212]
[1729127302693,12.0802,155.27,155.22,3.2212]
[1729127303192,3.2209,155.25,155.22,3.2212]
[1729127307589,3.2209,155.24,155.22,3.2212]
[1729127311799,3.2209,155.24,155.22,12.1412]
[1729127313295,3.2208,155.25,155.22,12.1412]
[1729127314493,3.221,155.24,155.22,3.2212]
[1729127317299,12.1409,155.24,155.19,3.2218]
[1729127317500,8.92,155.23,155.18,8.92]
[1729127317704,13.48,155.23,155.18,8.92]
[1729127317904,3.2218,155.2,155.18,8.92]
[1729127318995,13.48,155.23,155.18,8.92]
[1729127318996,3.2217,155.21,155.19,8.92]
[1729127322506,13.48,155.23,155.15,9.20880542]
[1729127322811,8.92,155.21,155.16,8.92]
[1729127323001,8.92,155.19,155.15,3.29810542]
[1729127323205,8.92,155.19,155.14,8.92]
[1729127323516,3.2224,155.17,155.14,15.44476855]
[1729127324002,3.2223,155.18,155.15,3.2228]
[1729127324206,3.2223,155.18,155.15,12.1428]
[1729127330310,3.2223,155.18,155.15,3.2228]
[1729127334312,3.2225,155.17,155.14,6.52476855]
[1729127334617,8.92,155.17,155.11,8.92]
[1729127334812,3.223,155.14,155.11,6.38668042]
[1729127335013,8.92,155.17,155.11,12.08318042]
[1729127335913,3.2226,155.16,155.13,12.1431]
[1729127337316,4.56,155.19,155.15,8.92]
[1729127337610,4.56,155.19,155.17,8.92]
[1729127338314,4.56,155.19,155.16,3.2225]
[1729127338515,7.782,155.19,155.16,3.2225]
[1729127341621,3.222,155.19,155.16,3.2225]
[1729127342621,3.222,155.19,155.17,8.92]
[1729127342815,224.0,155.35,155.18,8.92]
[1729127343016,8.92,155.22,155.13,7.3044]
[1729127343221,8.92,155.2,155.13,7.3044]
[1729127343419,3.2222,155.19,155.16,3.2225]
[1729127343721,3.2222,155.19,155.16,12.1425]
[1729127346025,3.2222,155.19,155.17,8.92]
[1729127348219,3.2222,155.19,155.13,7.3044]
[1729127348220,3.2225,155.17,155.14,3.2229]
[1729127348422,3.2225,155.17,155.14,12.1429]
[1729127349324,3.2225,155.17,155.14,3.2229]
[1729127349625,3.2226,155.16,155.13,12.1431]
[1729127350020,13.48,155.18,155.13,8.92]
[1729127350224,13.48,155.18,155.14,3.2229]
[1729127351523,13.48,155.18,155.11,3.16318042]
[1729127351524,8.92,155.16,155.11,3.16318042]
[1729127351715,8.92,155.16,155.11,8.92]
[1729127352023,3.2234,155.13,155.11,3.15198462]
[1729127352224,12.1434,155.13,155.1,91.43887006]
[1729127352427,8.92,155.13,155.1,88.21517006]
[1729127352730,3.2236,155.12,155.1,91.43161904]
[1729127353024,8.92,155.13,155.1,91.43161904]
[1729127353025,12.1433,155.13,155.1,94.65541904]
[1729127354222,3.2233,155.13,155.1,103.57541904]
[1729127355321,4.56,155.14,155.12,12.1432]
[1729127355520,3.2228,155.15,155.13,8.92]
[1729127358422,4.56,155.17,155.15,3.2227]
[1729127358622,4.56,155.17,155.15,12.1427]
[1729127359526,7.7824,155.17,155.15,12.1427]
[1729127360630,3.2224,155.17,155.15,12.1427]
[1729127361527,3.2221,155.19,155.16,3.2226]
[1729127361732,4.56,155.2,155.17,8.92]
[1729127362231,7.782,155.2,155.17,12.1423]
[1729127363430,3.222,155.19,155.17,12.1423]
[1729127364138,4.56,155.2,155.17,12.1423]
[1729127365536,7.7818,155.2,155.17,12.1423]
[1729127376949,7.7818,155.2,155.18,8.92]
[1729127377246,7.7818,155.2,155.18,12.0791158]
[1729127379147,3.2218,155.2,155.18,12.0791158]
[1729127384456,4.56,155.22,155.18,12.0791158]
[1729127384457,3.2216,155.21,155.19,3.222]
[1729127384645,3.2216,155.21,155.19,12.142]
[1729127384951,7.7809,155.24,155.21,3.2214]
[1729127385149,4.56,155.24,155.21,3.2214]
[1729127385749,4.56,155.24,155.21,6.43400453]
[1729127386451,3.2212,155.23,155.21,6.43400453]
[1729127396568,3.2212,155.23,155.22,8.92]
[1729127400368,13.48,155.25,155.21,3.21260453]
[1729127400568,13.48,155.25,155.2,8.92]
[1729127400871,4.56,155.24,155.2,12.11704626]
[1729127402469,3.2216,155.21,155.2,12.11704626]
[1729127406573,3.2216,155.21,155.2,3.19704626]
[1729127406775,3.222,155.19,155.18,8.92]
[1729127406970,3.222,155.19,155.18,12.16033688]
[1729127409675,3.222,155.19,155.18,3.24033688]
[1729127409871,13.48,155.2,155.16,8.92]
[1729127410071,13.48,155.2,155.11,4.1194]
[1729127410072,8.92,155.18,155.11,2.8015]
[1729127410276,13.48,155.18,155.11,7.3615]
[1729127410477,13.48,155.18,155.13,8.92]
[1729127410969,3.2225,155.17,155.13,8.92]
[1729127411169,13.48,155.18,155.13,8.92]
[1729127411368,13.48,155.18,155.13,12.1432]
[1729127411873,4.56,155.18,155.15,8.92]
[1729127412573,3.2227,155.16,155.15,8.92]
[1729127414571,3.2229,155.15,155.13,12.1432]
[1729127414777,13.48,155.18,155.12,8.92]
[1729127415169,3.2231,155.14,155.12,8.92]
[1729127420672,14.8117,155.18,155.13,8.92]
[1729127420868,13.48,155.18,155.13,8.92]
[1729127421881,3.2227,155.16,155.13,12.1431]
[1729127422880,3.2229,155.15,155.13,8.92]
[1729127425183,3.2229,155.15,155.13,12.1432]
[1729127426277,3.2229,155.15,155.13,8.92]
[1729127428988,3.2226,155.16,155.13,8.92]
[1729127430290,3.2226,155.16,155.14,3.223]
[1729127433590,3.2226,155.16,155.13,12.1431]
[1729127435286,3.223,155.15,155.12,12.1434]
[1729127439192,1.3791,155.19,155.11,2.748]
[1729127439193,3.2226,155.16,155.13,12.143]
[1729127439383,4.56,155.17,155.13,8.92]
[1729127440392,3.2227,155.16,155.13,12.1431]
[1729127443391,3.2229,155.15,155.11,2.748]
[1729127443599,3.2229,155.15,155.12,12.1433]
[1729127443790,8.92,155.16,155.05,1.3775]
[1729127443996,8.92,155.13,155.07,8.92]
[1729127444301,13.48,155.13,155.06,2.7655]
[1729127444596,3.2236,155.11,155.07,12.1443]
[1729127444792,3.2236,155.11,155.07,15.29894756]
[1729127445188,8.92,155.1,155.07,3.15464756]
[1729127445398,8.92,155.1,155.04,8.92]
[1729127445704,3.2246,155.07,155.04,12.145]
[1729127446595,7.7842,155.09,155.06,8.92]
[1729127446795,7.7842,155.09,155.07,8.92]
[1729127446995,4.56,155.09,155.07,12.17941564]
[1729127447195,4.56,155.09,155.07,15.40371564]
[1729127448102,4.56,155.09,155.07,12.17941564]
[1729127449807,7.7841,155.09,155.07,12.17941564]
[1729127450694,3.2243,155.08,155.07,12.17941564]
[1729127450899,4.56,155.09,155.07,12.17941564]
[1729127451098,4.56,155.09,155.07,3.25941564]
[1729127451297,4.56,155.09,155.03,4.56]
[1729127451494,13.48,155.09,155.04,8.92]
[1729127451697,4.56,155.09,155.05,8.92]
[1729127451998,3.2244,155.08,155.05,8.92]
[1729127452604,3.2244,155.08,155.05,12.1449]
[1729127452802,4.56,155.09,155.07,8.92]
[1729127453094,4.56,155.09,155.07,12.11210679]
[1729127453796,7.7841,155.09,155.07,12.11210679]
[1729127456206,3.2243,155.08,155.07,3.19210679]
[1729127456395,13.48,155.09,155.04,8.92]
[1729127456603,4.56,155.09,155.04,8.92]
[1729127456803,13.48,155.09,155.04,8.92]
[1729127457403,3.2246,155.07,155.05,3.2249]
[1729127458503,3.2246,155.07,155.04,12.145]
[1729127462817,3.2246,155.07,155.04,3.225]
[1729127463106,3.2246,155.07,155.04,12.145]
[1729127464301,8.92,155.06,154.92,69.62]
[1729127464504,8.92,155.04,154.99,8.92]
[1729127464707,8.92,155.04,154.99,12.16626112]
[1729127465204,12.1452,155.04,155.01,3.2256]
[1729127465605,6.4468,155.13,155.03,8.92]
[1729127465810,3.2247,155.06,155.04,8.92]
[1729127466104,3.2247,155.06,154.99,4.56]
[1729127466105,3.2247,155.06,155.03,8.92]
[1729127466308,3.2247,155.06,155.03,12.1452]
[1729127467908,8.92,155.08,155.03,8.92]
[1729127468110,3.2245,155.07,155.05,8.92]
[1729127468515,4.56,155.08,155.06,12.1446]
[1729127469607,7.7843,155.08,155.06,12.1446]
[1729127469807,7.7843,155.08,155.06,8.92]
[1729127470406,7.7843,155.08,155.05,12.1448]
[1729127473308,4.56,155.08,155.05,12.1448]
[1729127473515,13.48,155.08,154.99,7.70853463]
[1729127473713,13.48,155.08,155.03,8.92]
[1729127473913,3.2248,155.06,155.03,12.1452]
[1729127474119,4.56,155.08,155.04,8.92]
[1729127474511,7.7844,155.08,155.05,3.2247]
[1729127475209,3.2245,155.07,155.05,3.2247]
[1729127478422,7.7843,155.08,155.05,3.2247]
[1729127480416,4.56,155.08,155.04,8.92]
[1729127480620,7.7843,155.08,155.06,12.1445]
[1729127481221,7.7843,155.08,155.06,8.92]
[1729127481421,7.7843,155.08,155.05,12.1448]